[Event "European School-ch 2019"]
[Site "Mamaia"]
[Date "2019.06.05"]
[Round "6.19"]
[White "Nemsadze, Daviti"]
[Black "Gurel, Ediz"]
[Result "1/2-1/2"]
[ECO "E18"]
[WhiteElo "1803"]
[BlackElo "1914"]
[Annotator "NA RC"]
[PlyCount "90"]
[EventDate "2019.05.31"]
[EventType "swiss"]
[EventCountry "ROU"]
[SourceTitle "playchess.com"]
[Source "ChessBase"]
[SourceQuality "1"]
[TimeControl "40/5400+30:1800+30"]

1. d4 {[%emt 0:00:00]} Nf6 {[%emt 0:00:00]} 2. c4 {[%emt 0:00:00]} e6 {[%emt 0:00:20]} 3. Nf3 {[%emt 0:00:00]} b6 {[%emt 0:00:57]} 4. g3 {[%emt 0:00:17]} Bb7 {[%emt 0:00:33]} 5. Bg2 {[%emt 0:00:12]} Be7 {[%emt 0:00:43]} 6. O-O {[%emt 0:00:13]} O-O {[%emt 0:02:28]} 7. Nc3 {[%emt 0:14:05]} Ne4 {[%emt 0:02:17]} 8. Nd2 {[%emt 0:01:53] E18: Queen's Indian: Old Main Line (4 g3 Bb7 5 Bg2 Be7 6 0-0 0-0 7 Nc3)} (8. Bd2 f5 9. Ne5 Bf6 10. Nxe4 Bxe4 11. Bc3 Bxg2 12. Kxg2 d5 13. cxd5 Qxd5+ 14. Nf3 {½-½ (14) Berkes,F (2661)-Abasov,N (2629) Hungary 2019}) 8... Nxc3 {[%emt 0:00:00]} 9. bxc3 {[%emt 0:00:11]} Bxg2 10. Kxg2 {[%emt 0:00:13]} d5 {[%emt 0:08:46]} 11. e4 $146 {[%emt 0:03:11]} ({Predecessor:} 11. cxd5 Qxd5+ 12. e4 Qb7 13. Qe2 Rd8 14. Nf3 c5 15. Rd1 Na6 {1-0 (52) Ostojic,K (1964)-Abramovic,B (2420) Belgrade 2016}) 11... dxe4 {[%emt 0:00:28]} 12. Nxe4 {[%emt 0:00:20]} Nd7 {[%emt 0:00:09]} 13. Qf3 {[%emt 0:01:33]} Nf6 {[%emt 0:09:36]} 14. Be3 {[%emt 0:02:27]} Qd7 {[%emt 0:01:27]} 15. a4 {[%emt 0:16:28]} Rfd8 {[%emt 0:11:17]} 16. Rfd1 {[%emt 0:00:28]} Rac8 {[%emt 0:01:42]} 17. a5 {[%emt 0:22:17]} Qe8 {[%emt 0:16:35]} 18. axb6 {[%emt 0:10:01]} axb6 {[%emt 0:01:05]} 19. Ra7 {[%emt 0:00:45]} Nxe4 {[%emt 0:07:28]} 20. Qxe4 {[%emt 0:00:39]} Bf6 {[%emt 0:00:11]} 21. Rb1 {[%emt 0:06:31]} g6 {[%emt 0:10:47]} 22. h4 {[%emt 0:03:34]} Rd6 {[%emt 0:04:52]} 23. f3 {[%emt 0:03:33]} Qc6 {[%emt 0:03:50]} 24. Rb4 {[%emt 0:07:25]} Be7 {[%emt 0:06:41]} 25. Qc2 {[%emt 0:04:16]} f6 {[%emt 0:06:10]} 26. Qa2 {[%emt 0:00:37]} Kf7 {[%emt 0:00:29]} 27. Rb1 {[%emt 0:00:22]} Rdd8 {[%emt 0:02:05]} 28. Qb3 {[%emt 0:01:00]} Kg7 {[%emt 0:01:23]} 29. Bf4 {[%emt 0:00:21]} h6 {[%emt 0:00:33]} 30. Re1 {[%emt 0:00:16]} Rd7 {[%emt 0:00:29]} 31. c5 {[%emt 0:00:38]} Kf7 {[%emt 0:01:00]} 32. cxb6 {[%emt 0:01:22]} cxb6 {[%emt 0:00:03]} 33. Ra6 {[%emt 0:00:23]} Rb7 {[%emt 0:00:17]} 34. Raa1 {[%emt 0:00:48]} g5 {[%emt 0:00:52]} 35. hxg5 {[%emt 0:00:17]} hxg5 {[%emt 0:00:03]} 36. Bd2 {[%emt 0:00:02]} g4 {[%emt 0:00:28]} 37. Re3 {[%emt 0:01:20]} Rh8 {[%emt 0:01:30]} 38. c4 {[%emt 0:00:18]} Rd7 {[%emt 0:00:35]} 39. Qc3 {[%emt 0:00:00]} Rh5 {[%emt 0:00:00]} 40. Rae1 {[%emt 0:00:00]} gxf3+ {[%emt 0:00:00]} 41. Rxf3 {[%emt 0:01:30]} Rc7 {[%emt 0:02:37]} 42. Qe3 {[%emt 0:13:03]} Ra7 {[%emt 0:08:36]} 43. Qe2 {[%emt 0:04:56]} ({Much worse is} 43. d5 exd5 44. g4 Rh8 $17) 43... Rd7 $18 {[%emt 0:12:51]} (43... Rh7 $11 {and Black is okay.}) 44. d5 exd5 45. Rxf6+ Kxf6 1/2-1/2

[Event "European School-ch 2019"]
[Site "Mamaia"]
[Date "2019.06.05"]
[Round "6.20"]
[White "Durak, Can"]
[Black "Celik, Hasan Huseyin"]
[Result "0-1"]
[ECO "E62"]
[WhiteElo "1646"]
[BlackElo "1727"]
[Annotator "NA RC"]
[PlyCount "166"]
[EventDate "2019.05.31"]
[EventType "swiss"]
[EventCountry "ROU"]
[SourceTitle "playchess.com"]
[Source "ChessBase"]
[SourceQuality "1"]
[TimeControl "40/5400+30:1800+30"]

1. d4 {[%emt 0:00:00]} Nf6 {[%emt 0:00:09]} 2. c4 {[%emt 0:01:21]} g6 {[%emt 0:00:11]} 3. Nf3 {[%emt 0:00:40]} Bg7 {[%emt 0:01:06]} 4. g3 {[%emt 0:01:35]} O-O {[%emt 0:00:19]} 5. Bg2 {[%emt 0:01:01]} d6 {[%emt 0:00:09]} 6. O-O {[%emt 0:00:45]} c6 {[%emt 0:00:21]} 7. Nc3 {[%emt 0:01:22]} Qa5 {[%emt 0:00:05]} 8. Bd2 {[%emt 0:12:15]} Qb6 {[%emt 0:03:34]} 9. b3 {[%emt 0:00:34]} Nbd7 {[%emt 0:04:14]} 10. Bf4 {[%emt 0:03:40]} Re8 {[%emt 0:07:19]} 11. Rc1 {[%emt 0:08:49]} e5 {[%emt 0:02:53]} 12. dxe5 {[%emt 0:00:25]} dxe5 {[%emt 0:00:08]} 13. Be3 {[%emt 0:00:42]} Qc7 {[%emt 0:00:26]} 14. h3 {[%emt 0:02:16]} Nf8 {[%emt 0:05:42]} 15. Bg5 {[%emt 0:05:00]} Bf5 {[%emt 0:07:08]} 16. Bxf6 {[%emt 0:01:56]} Bxf6 {[%emt 0:00:42]} 17. e4 {[%emt 0:00:03]} Bd7 {[%emt 0:02:53]} 18. Qd2 {[%emt 0:02:43]} Rad8 {[%emt 0:01:38]} 19. Qe3 {[%emt 0:00:58]} Qa5 {[%emt 0:03:42]} 20. Rfd1 {[%emt 0:05:41]} Ne6 {[%emt 0:03:08]} 21. Kh2 {[%emt 0:03:21]} Bc8 {[%emt 0:02:03]} 22. Qe1 {[%emt 0:01:27]} Bg7 {[%emt 0:00:24]} 23. Qe3 {[%emt 0:03:27]} Nd4 {[%emt 0:01:47]} 24. Rd2 {[%emt 0:03:20]} Nxf3+ {[%emt 0:10:53]} 25. Bxf3 {[%emt 0:00:09]} Rd4 {[%emt 0:00:10]} 26. Rcd1 {[%emt 0:01:15]} Red8 {[%emt 0:00:12]} 27. Rd3 {[%emt 0:03:20]} Qb6 {[%emt 0:03:53]} 28. Kg2 {[%emt 0:02:50]} R8d7 {[%emt 0:04:50]} 29. Bg4 {[%emt 0:04:51]} Rxd3 {[%emt 0:00:30]} 30. Rxd3 {[%emt 0:00:09]} Rxd3 {[%emt 0:00:03]} 31. Qxd3 {[%emt 0:00:06]} Bxg4 {[%emt 0:00:05]} 32. hxg4 {[%emt 0:00:05]} Qd4 {[%emt 0:00:03]} 33. Qxd4 {[%emt 0:01:35]} exd4 {[%emt 0:00:38]} 34. Na4 {[%emt 0:00:04]} d3 {[%emt 0:00:44]} 35. Kf1 {[%emt 0:00:47]} Bd4 {[%emt 0:00:04]} 36. b4 {[%emt 0:00:46]} d2 {[%emt 0:00:48]} 37. Ke2 {[%emt 0:00:05]} Bxf2 {[%emt 0:00:13]} 38. Kxd2 {[%emt 0:00:05]} Bxg3 {[%emt 0:00:08]} 39. Nc5 {[%emt 0:00:20]} b6 {[%emt 0:00:08]} 40. Nd7 {[%emt 0:00:00]} Kg7 {[%emt 0:00:00]} 41. e5 {[%emt 0:02:55]} h5 {[%emt 0:06:56]} 42. gxh5 {[%emt 0:00:12]} gxh5 43. Ke2 {[%emt 0:00:57]} f6 {[%emt 0:01:51]} 44. Nb8 {[%emt 0:02:48]} c5 {[%emt 0:03:16]} 45. bxc5 {[%emt 0:00:32]} Bxe5 {[%emt 0:01:19]} 46. Nc6 {[%emt 0:00:16]} bxc5 {[%emt 0:00:06]} 47. Nxa7 {[%emt 0:00:18]} Kg6 {[%emt 0:04:08]} 48. a4 {[%emt 0:03:59]} Kf5 {[%emt 0:00:12]} 49. a5 {[%emt 0:00:18]} Ke6 {[%emt 0:02:35]} 50. Nc8 {[%emt 0:05:27]} Kd7 {[%emt 0:00:29]} 51. Nb6+ {[%emt 0:00:05]} Kc6 {[%emt 0:00:10]} 52. Kf3 {[%emt 0:00:33]} Kb7 {[%emt 0:01:36]} 53. Nd7 {[%emt 0:04:21]} Bd4 {[%emt 0:00:06]} 54. Kg3 {[%emt 0:02:19]} Ka6 {[%emt 0:00:21]} 55. Kh4 {[%emt 0:00:10]} Kxa5 56. Kxh5 {[%emt 0:00:07]} Kb4 {[%emt 0:00:06]} 57. Nb6 {[%emt 0:00:10]} Kc3 {[%emt 0:01:13]} 58. Kg6 {[%emt 0:00:06]} Be5 {[%emt 0:01:15]} 59. Kf5 {[%emt 0:00:17]} Kd4 {[%emt 0:00:05]} 60. Ke6 {[%emt 0:01:24]} Bc7 {[%emt 0:00:37]} 61. Nd7 {[%emt 0:01:57]} Bd8 {[%emt 0:00:17]} 62. Kd6 {[%emt 0:00:14]} f5 {[%emt 0:00:32]} 63. Nxc5 {[%emt 0:01:55]} Be7+ {[%emt 0:00:14]} 64. Ke6 {[%emt 0:00:05]} f4 {[%emt 0:00:11]} 65. Kf5 {[%emt 0:00:20]} f3 {[%emt 0:01:37]} 66. Ne4 {[%emt 0:00:17]} Ke3 {[%emt 0:00:06]} 67. Ke5 {[%emt 0:01:02]} Bc5 {[%emt 0:00:29]} 68. Kf5 {[%emt 0:03:05]} Bd4 {[%emt 0:00:09]} 69. c5 {[%emt 0:00:42]} Bxc5 {[%emt 0:00:08]} 70. Nc3 {[%emt 0:00:15]} Bd4 {[%emt 0:01:16]} 71. Nd1+ {[%emt 0:00:49]} Ke2 {[%emt 0:00:07]} 72. Kf4 {[%emt 0:02:59]} Bg7 {[%emt 0:04:15]} 73. Kg3 {[%emt 0:01:14]} Bf6 {[%emt 0:00:07]} 74. Kf4 {[%emt 0:00:46]} Bg5+ {[%emt 0:00:05]} 75. Kg4 {[%emt 0:00:30]} Bd2 {[%emt 0:01:11]} 76. Kg3 {[%emt 0:00:08]} Ba5 {[%emt 0:00:37]} 77. Kg4 {[%emt 0:00:50]} Bb4 {[%emt 0:00:38]} 78. Kf4 {[%emt 0:06:48]} Bd6+ {[%emt 0:00:05]} 79. Ke4 {[%emt 0:00:44]} Be5 {[%emt 0:00:04]} 80. Ne3 {[%emt 0:00:35]} f2 {[%emt 0:00:05]} 81. Ng4 {[%emt 0:00:33]} f1=Q {[%emt 0:00:05]} 82. Nxe5 {[%emt 0:00:11]} Qh3 {[%emt 0:00:09]} 83. Ng6 {[%emt 0:00:21]} Qd3+ {[%emt 0:00:11]} 0-1

[Event "European School-ch 2019"]
[Site "Mamaia"]
[Date "2019.06.05"]
[Round "6.21"]
[White "Samunenkov, Ihor"]
[Black "Sapocinic, Semion"]
[Result "1-0"]
[ECO "A45"]
[WhiteElo "1972"]
[BlackElo "1697"]
[Annotator "NA RC"]
[PlyCount "119"]
[EventDate "2019.05.31"]
[EventType "swiss"]
[EventCountry "ROU"]
[SourceTitle "playchess.com"]
[Source "ChessBase"]
[SourceQuality "1"]
[TimeControl "40/5400+30:1800+30"]

1. d4 {[%emt 0:00:00]} Nf6 {[%emt 0:00:00]} 2. g3 {[%emt 0:00:00]} d5 {[%emt 0:00:07]} 3. Nf3 {[%emt 0:00:31]} Bf5 {[%emt 0:02:35]} 4. c4 {[%emt 0:03:35]} c6 {[%emt 0:01:55]} 5. Nc3 {[%emt 0:00:45]} e6 {[%emt 0:02:01]} 6. Nh4 {[%emt 0:00:12] D11: Slav Defence: 3 Nf3 sidelines and 3...Nf6 4 e3 Bg4} Bg4 {[%emt 0:00:32]} 7. f3 {[%emt 0:02:00]} Bh5 {[%emt 0:00:42]} 8. Qb3 {[%emt 0:00:13]} b6 $146 {[%emt 0:01:56]} ({Predecessor:} 8... Qb6 9. c5 Qxb3 10. axb3 Nfd7 11. g4 Be7 12. Nf5 exf5 13. gxh5 {½-½ (50) Bluebaum,M (2632)-Soffer,R (2508) Minsk 2017}) 9. Be3 {[%emt 0:06:33]} h6 {[%emt 0:01:13]} 10. Bf2 {[%emt 0:04:47]} g5 {[%emt 0:00:46]} 11. Ng2 {[%emt 0:00:55]} Bg6 {[%emt 0:00:36]} 12. h4 {[%emt 0:04:53]} Bg7 {[%emt 0:02:51]} 13. g4 {[%emt 0:01:56]} Nbd7 {[%emt 0:04:07]} 14. e3 {[%emt 0:02:06]} a6 {[%emt 0:13:30]} 15. cxd5 {[%emt 0:11:09]} cxd5 {[%emt 0:00:29]} 16. Be2 {[%emt 0:00:32]} O-O {[%emt 0:02:52]} 17. a4 {[%emt 0:07:47]} Qc7 {[%emt 0:07:59]} 18. O-O {[%emt 0:03:32]} Qb7 {[%emt 0:04:15]} 19. Bg3 {[%emt 0:01:23]} Rac8 {[%emt 0:06:04]} 20. Rad1 {[%emt 0:06:12]} Rc6 {[%emt 0:06:32]} 21. Be1 {[%emt 0:04:58]} Rfc8 {[%emt 0:01:40]} 22. f4 {[%emt 0:01:51]} Ne4 {[%emt 0:13:35]} 23. f5 {[%emt 0:03:53]} Nxc3 {[%emt 0:01:54]} 24. Bxc3 {[%emt 0:05:26]} Bh7 {[%emt 0:00:57]} 25. hxg5 {[%emt 0:04:01]} hxg5 {[%emt 0:00:18]} 26. e4 {[%emt 0:05:32]} Nf6 {[%emt 0:03:49]} 27. exd5 {[%emt 0:02:24]} Nxd5 {[%emt 0:01:34]} 28. Bf3 {[%emt 0:01:11]} Qd7 {[%emt 0:06:29]} 29. Bd2 {[%emt 0:04:46]} Bxd4+ {[%emt 0:01:36]} 30. Kh1 {[%emt 0:01:23]} Bf6 {[%emt 0:00:41]} 31. Ne3 {[%emt 0:02:34]} Rd8 {[%emt 0:00:53]} 32. Nxd5 {[%emt 0:01:01]} exd5 {[%emt 0:00:09]} 33. Bb4 {[%emt 0:00:12]} Rc4 {[%emt 0:02:26]} 34. Rxd5 {[%emt 0:02:06]} Qc7 {[%emt 0:00:59]} 35. Rxd8+ {[%emt 0:01:44]} Bxd8 {[%emt 0:00:42] [#]} 36. Bd6 $1 {[%emt 0:01:03]} Qxd6 {[%emt 0:00:58]} 37. Qxc4 {[%emt 0:00:33]} Bc7 {[%emt 0:00:03]} 38. Qe2 {[%emt 0:01:35]} Kg7 {[%emt 0:01:20]} 39. Be4 {[%emt 0:01:08]} Qg3 {[%emt 0:01:16]} 40. f6+ {[%emt 0:00:00]} Kh6 {[%emt 0:00:00]} 41. Bxh7 {[%emt 0:05:47]} Qh3+ {[%emt 0:02:12]} (41... Kxh7 $142 42. Qg2 Qh4+ 43. Kg1 Bf4) 42. Kg1 {[%emt 0:00:18]} Kxh7 $2 {[%emt 0:00:37]} (42... Qg3+ 43. Qg2 Kxh7 44. Qxg3 Bxg3) 43. Qe4+ {[%emt 0:07:58]} (43. Qc2+ $142 Kh6 44. Qxc7 Qxg4+ 45. Kf2 Qxa4 46. Qe5 Qh4+ 47. Kg2 Qg4+ 48. Qg3 Qe2+ 49. Rf2) 43... Kh6 {[%emt 0:00:58]} 44. Qh1 {[%emt 0:00:48]} Qxh1+ {[%emt 0:00:37]} 45. Kxh1 {[%emt 0:00:17]} Bd6 {[%emt 0:00:31]} 46. Rf5 {[%emt 0:00:49]} a5 {[%emt 0:00:10]} 47. Kg2 {[%emt 0:00:20]} Bc5 {[%emt 0:01:09]} 48. Kf3 {[%emt 0:01:04]} Bd4 {[%emt 0:00:37]} 49. b3 {[%emt 0:05:42]} Kg6 {[%emt 0:00:07]} 50. Ke4 {[%emt 0:01:35]} Bxf6 {[%emt 0:01:33]} 51. Rb5 {[%emt 0:03:07]} Bd8 {[%emt 0:01:05]} 52. Ke5 {[%emt 0:00:47]} Bf6+ {[%emt 0:01:51]} 53. Kd5 {[%emt 0:00:38]} Bc3 {[%emt 0:01:16]} 54. Rxb6+ {[%emt 0:00:21]} f6 {[%emt 0:00:19]} 55. Ke6 {[%emt 0:00:18]} Bd2 {[%emt 0:01:19]} 56. Rb8 $18 {[%emt 0:00:55]} Kg7 {[%emt 0:01:52]} 57. Kf5 {[%emt 0:00:12]} Bc3 {[%emt 0:00:17]} 58. Rb7+ {[%emt 0:00:09]} Kf8 {[%emt 0:00:09]} 59. Kg6 {[%emt 0:00:06]} Ke8 {[%emt 0:00:28]} 60. Rf7 {[%emt 0:00:24]} 1-0

[Event "European School-ch 2019"]
[Site "Mamaia"]
[Date "2019.06.05"]
[Round "6.22"]
[White "Zhelev, Nikolay"]
[Black "Krawczyk, Flawian"]
[Result "0-1"]
[ECO "E67"]
[WhiteElo "1710"]
[BlackElo "1795"]
[Annotator "NA RC"]
[PlyCount "92"]
[EventDate "2019.05.31"]
[EventType "swiss"]
[EventCountry "ROU"]
[SourceTitle "playchess.com"]
[Source "ChessBase"]
[SourceQuality "1"]
[TimeControl "40/5400+30:1800+30"]

1. Nf3 {[%emt 0:00:00]} Nf6 {[%emt 0:00:00]} 2. c4 {[%emt 0:00:00]} g6 {[%emt 0:00:00]} 3. g3 {[%emt 0:00:00]} Bg7 {[%emt 0:00:00]} 4. Bg2 {[%emt 0:00:00]} O-O {[%emt 0:00:00]} 5. O-O {[%emt 0:00:05]} d6 {[%emt 0:00:00]} 6. d4 {[%emt 0:00:28]} Nbd7 {[%emt 0:00:00]} 7. Nc3 {[%emt 0:01:18]} e5 {[%emt 0:00:32]} 8. dxe5 {[%emt 0:03:15]} dxe5 {[%emt 0:00:43]} 9. Qc2 {[%emt 0:05:53]} c6 {[%emt 0:01:15]} 10. e4 {[%emt 0:01:25]} Qc7 {[%emt 0:01:09]} 11. h3 {[%emt 0:04:34]} Nh5 {[%emt 0:01:47]} 12. b3 {[%emt 0:11:53]} Rd8 {[%emt 0:03:22]} 13. Ba3 {[%emt 0:11:37]} Nf8 {[%emt 0:03:43]} 14. Rad1 {[%emt 0:02:31]} Be6 {[%emt 0:01:30]} 15. Ng5 {[%emt 0:08:46]} h6 {[%emt 0:04:59]} 16. Nxe6 {[%emt 0:01:15]} Nxe6 {[%emt 0:00:06]} 17. Ne2 {[%emt 0:02:16]} Nf6 {[%emt 0:04:09]} 18. Kh1 {[%emt 0:09:57]} Nh7 {[%emt 0:01:57]} 19. Qc3 {[%emt 0:04:39]} Nhf8 {[%emt 0:03:19]} 20. c5 {[%emt 0:03:26]} Rd7 {[%emt 0:04:00]} 21. Rd6 {[%emt 0:09:01]} Rad8 {[%emt 0:02:13]} 22. Rfd1 {[%emt 0:01:32]} Nd4 {[%emt 0:03:33]} 23. Nxd4 {[%emt 0:02:52]} exd4 {[%emt 0:00:18]} 24. Qc4 {[%emt 0:00:22]} Ne6 {[%emt 0:00:50]} 25. Rxd7 {[%emt 0:00:25]} Rxd7 {[%emt 0:00:42]} 26. b4 {[%emt 0:02:38]} a5 {[%emt 0:02:54]} 27. f4 {[%emt 0:03:37]} g5 {[%emt 0:03:49]} 28. f5 {[%emt 0:00:04]} Nf8 {[%emt 0:00:29]} 29. Rd3 {[%emt 0:00:58]} Be5 {[%emt 0:00:45]} 30. g4 {[%emt 0:00:54]} axb4 {[%emt 0:02:44]} 31. Bxb4 {[%emt 0:00:16]} Nh7 {[%emt 0:01:07]} 32. Qc2 {[%emt 0:02:28]} Nf6 {[%emt 0:02:33]} 33. Qe2 {[%emt 0:00:11]} b6 {[%emt 0:01:37]} 34. Ra3 {[%emt 0:00:19]} bxc5 {[%emt 0:01:21]} 35. Bxc5 {[%emt 0:00:05]} Qd8 {[%emt 0:01:21]} 36. Qd3 {[%emt 0:02:04]} h5 {[%emt 0:00:48]} 37. Bf3 {[%emt 0:00:24]} hxg4 {[%emt 0:00:31]} 38. Bxg4 {[%emt 0:00:23]} Nxg4 {[%emt 0:00:33]} 39. hxg4 {[%emt 0:00:05]} f6 {[%emt 0:01:11]} 40. Qc4+ {[%emt 0:00:00]} Kg7 {[%emt 0:00:00]} 41. Kg2 {[%emt 0:25:11]} d3 {[%emt 0:01:16]} 42. Qb3 {[%emt 0:02:06]} Qh8 {[%emt 0:02:30]} 43. Qe6 {[%emt 0:05:49]} Qh2+ {[%emt 0:00:13]} 44. Kf1 {[%emt 0:00:05]} Qe2+ {[%emt 0:00:54]} 45. Kg1 {[%emt 0:00:06]} Qxg4+ {[%emt 0:00:05]} 46. Kf1 {[%emt 0:01:02]} Qh3+ {[%emt 0:00:39]} 0-1

[Event "European School-ch 2019"]
[Site "Mamaia"]
[Date "2019.06.05"]
[Round "6.23"]
[White "Ciocani, Iosif"]
[Black "Gabulov, Ilkin"]
[Result "1/2-1/2"]
[ECO "A15"]
[WhiteElo "1740"]
[BlackElo "1288"]
[Annotator "NA RC"]
[PlyCount "100"]
[EventDate "2019.05.31"]
[EventType "swiss"]
[EventCountry "ROU"]
[SourceTitle "playchess.com"]
[Source "ChessBase"]
[SourceQuality "1"]
[TimeControl "40/5400+30:1800+30"]

1. c4 {[%emt 0:00:00]} Nf6 {[%emt 0:00:00]} 2. Nf3 {[%emt 0:00:07]} e6 {[%emt 0:01:35]} 3. g3 {[%emt 0:00:22]} d5 {[%emt 0:02:35]} 4. cxd5 {[%emt 0:00:18]} exd5 {[%emt 0:00:49]} 5. Bg2 {[%emt 0:00:42]} Bd6 {[%emt 0:03:22]} 6. O-O {[%emt 0:01:22]} O-O {[%emt 0:00:35]} 7. b3 {[%emt 0:02:09]} c6 {[%emt 0:02:54]} 8. Bb2 {[%emt 0:00:38]} Re8 {[%emt 0:00:47]} 9. d3 {[%emt 0:02:46]} Nbd7 {[%emt 0:01:02]} 10. Nbd2 {[%emt 0:02:54]} Ne5 {[%emt 0:02:03]} 11. Re1 {[%emt 0:09:05]} Bd7 {[%emt 0:15:43]} 12. Nxe5 {[%emt 0:05:36]} Bxe5 {[%emt 0:03:43]} 13. Bxe5 Rxe5 {[%emt 0:00:34]} 14. e4 {[%emt 0:02:25]} Qb6 {[%emt 0:03:41]} 15. Nf3 {[%emt 0:07:22]} Ree8 {[%emt 0:03:41]} 16. e5 {[%emt 0:01:50]} Ng4 {[%emt 0:00:44]} 17. d4 {[%emt 0:00:16]} Nh6 {[%emt 0:00:58]} 18. Qd2 {[%emt 0:02:28]} Nf5 {[%emt 0:04:06]} 19. g4 {[%emt 0:02:15]} Ne7 {[%emt 0:00:43]} 20. h3 {[%emt 0:00:40]} Ng6 {[%emt 0:00:40]} 21. Rac1 {[%emt 0:01:05]} a5 {[%emt 0:07:09]} 22. Nh2 {[%emt 0:04:33]} Qb4 {[%emt 0:05:38]} 23. Qd3 {[%emt 0:16:33]} a4 {[%emt 0:05:23]} 24. Nf3 {[%emt 0:12:12]} Nf4 {[%emt 0:05:38]} 25. Qe3 {[%emt 0:01:38]} Ne6 {[%emt 0:01:25]} 26. Red1 {[%emt 0:04:16]} b5 {[%emt 0:07:43]} 27. Nh4 {[%emt 0:06:26]} g6 {[%emt 0:04:00]} 28. f4 {[%emt 0:02:23]} Qa3 {[%emt 0:00:39]} 29. f5 {[%emt 0:01:54]} Ng7 {[%emt 0:00:10]} 30. f6 {[%emt 0:01:34]} Ne6 {[%emt 0:00:05]} 31. Nf3 {[%emt 0:01:33]} Qf8 {[%emt 0:01:04]} 32. b4 {[%emt 0:01:42]} a3 {[%emt 0:02:52]} 33. Rb1 {[%emt 0:01:22]} Ra4 {[%emt 0:00:35]} 34. Qd2 {[%emt 0:00:41]} Nc7 {[%emt 0:00:47]} 35. Ne1 {[%emt 0:00:56]} Na8 {[%emt 0:00:33]} 36. Nd3 {[%emt 0:00:36]} Nb6 {[%emt 0:00:24]} 37. Nc5 {[%emt 0:00:45]} Ra7 {[%emt 0:00:11]} 38. Bf1 {[%emt 0:01:40]} Rb8 {[%emt 0:02:15]} 39. Be2 {[%emt 0:01:15]} Na4 {[%emt 0:00:54]} 40. Nd3 {[%emt 0:00:00]} h6 {[%emt 0:00:00]} 41. Nf4 Nb2 {[%emt 0:02:50]} 42. Rxb2 {[%emt 0:11:43]} axb2 {[%emt 0:00:32]} 43. Qxb2 {[%emt 0:00:07]} Rba8 {[%emt 0:00:43]} 44. Ra1 {[%emt 0:00:15]} Qc8 {[%emt 0:01:15]} 45. Bd1 {[%emt 0:07:02]} Ra3 {[%emt 0:00:54]} 46. Bb3 {[%emt 0:03:53]} g5 {[%emt 0:03:21]} 47. Ng2 {[%emt 0:01:06]} Qf8 {[%emt 0:00:34]} 48. Ne1 {[%emt 0:04:52]} Qxb4 49. Nd3 Qa5 50. Nc5 Qb4 1/2-1/2

[Event "European School-ch 2019"]
[Site "Mamaia"]
[Date "2019.06.05"]
[Round "6.24"]
[White "Kotolashvili, Davit"]
[Black "Butolo, Alexandru-Mircea"]
[Result "1/2-1/2"]
[ECO "B27"]
[WhiteElo "1374"]
[BlackElo "1553"]
[Annotator "NA RC"]
[PlyCount "50"]
[EventDate "2019.05.31"]
[EventType "swiss"]
[EventCountry "ROU"]
[SourceTitle "playchess.com"]
[Source "ChessBase"]
[SourceQuality "1"]
[TimeControl "40/5400+30:1800+30"]

1. e4 {[%emt 0:00:00]} c5 {[%emt 0:00:35]} 2. Nf3 {[%emt 0:00:00]} g6 {[%emt 0:00:08]} 3. c3 {[%emt 0:00:00]} d5 {[%emt 0:00:29]} 4. exd5 {[%emt 0:00:13]} Qxd5 {[%emt 0:03:45]} 5. d4 {[%emt 0:00:07]} Bg7 {[%emt 0:00:55]} 6. Na3 {[%emt 0:00:28]} cxd4 {[%emt 0:00:46]} 7. Nb5 {[%emt 0:00:23]} Na6 {[%emt 0:01:12]} 8. Nbxd4 {[%emt 0:00:14]} Nf6 {[%emt 0:04:07]} 9. Bxa6 bxa6 {[%emt 0:00:55]} 10. O-O {[%emt 0:07:19]} O-O {[%emt 0:02:51]} 11. Re1 {[%emt 0:01:29]} e6 {[%emt 0:03:09]} 12. Bf4 {[%emt 0:05:44]} Bb7 {[%emt 0:02:18]} 13. Be5 {[%emt 0:10:10]} Rad8 {[%emt 0:09:55]} 14. Qb3 {[%emt 0:02:22]} Rc8 {[%emt 0:14:19]} 15. Rad1 {[%emt 0:04:18]} Ba8 {[%emt 0:12:58]} 16. Qa3 {[%emt 0:24:01]} Qb7 {[%emt 0:03:12]} 17. Qb3 {[%emt 0:08:13]} Qd5 {[%emt 0:20:34]} 18. Nc2 {[%emt 0:18:19]} Qxb3 {[%emt 0:01:58]} 19. axb3 {[%emt 0:00:05]} Rfd8 {[%emt 0:01:14]} 20. Nfd4 {[%emt 0:02:50]} Bb7 {[%emt 0:02:10]} 21. Ne3 {[%emt 0:02:16]} Nd5 {[%emt 0:00:50]} 22. Bxg7 {[%emt 0:00:08]} Kxg7 {[%emt 0:00:07]} 23. Nc4 {[%emt 0:02:03]} Nf4 {[%emt 0:02:24]} 24. f3 {[%emt 0:00:19]} Bd5 {[%emt 0:02:30]} 25. Ne3 {[%emt 0:01:05]} Bb7 {[%emt 0:00:34]} 1/2-1/2

[Event "European School-ch 2019"]
[Site "Mamaia"]
[Date "2019.06.05"]
[Round "6.25"]
[White "Gusev, Mikhail"]
[Black "Akkas, Doruk"]
[Result "1-0"]
[ECO "B76"]
[WhiteElo "1463"]
[BlackElo "1565"]
[Annotator "NA RC"]
[PlyCount "55"]
[EventDate "2019.05.31"]
[EventType "swiss"]
[EventCountry "ROU"]
[SourceTitle "playchess.com"]
[Source "ChessBase"]
[SourceQuality "1"]
[TimeControl "40/5400+30:1800+30"]

1. e4 {[%emt 0:00:00]} c5 {[%emt 0:00:00]} 2. Nf3 {[%emt 0:00:00]} Nc6 {[%emt 0:00:00]} 3. d4 {[%emt 0:00:00]} cxd4 {[%emt 0:00:00]} 4. Nxd4 {[%emt 0:00:00]} g6 {[%emt 0:00:00]} 5. Nc3 {[%emt 0:00:42]} Bg7 {[%emt 0:00:03]} 6. Be3 {[%emt 0:00:06]} Nf6 {[%emt 0:00:19]} 7. f3 {[%emt 0:00:30]} O-O {[%emt 0:03:44]} 8. Qd2 {[%emt 0:01:37]} d6 {[%emt 0:05:01]} 9. O-O-O {[%emt 0:01:09]} Nxd4 10. Bxd4 {[%emt 0:00:09]} Be6 {[%emt 0:04:35]} 11. g4 {[%emt 0:04:48]} Qa5 {[%emt 0:03:45]} 12. Kb1 {[%emt 0:02:40]} Rfb8 {[%emt 0:07:14]} 13. g5 {[%emt 0:19:17]} Nd7 {[%emt 0:01:33]} 14. Nd5 {[%emt 0:03:13]} Qd8 {[%emt 0:04:50]} 15. Bxg7 {[%emt 0:01:06]} Kxg7 {[%emt 0:00:02]} 16. Qc3+ {[%emt 0:06:40]} Kg8 {[%emt 0:03:41]} 17. h4 {[%emt 0:03:27]} Nb6 {[%emt 0:06:57]} 18. Nf4 {[%emt 0:03:12]} Rc8 {[%emt 0:10:15]} 19. Qd2 {[%emt 0:03:45]} Nc4 {[%emt 0:07:27]} 20. Bxc4 {[%emt 0:00:21]} Rxc4 {[%emt 0:00:37]} 21. h5 {[%emt 0:00:22]} gxh5 {[%emt 0:09:51]} 22. Rxh5 {[%emt 0:06:00]} Rac8 {[%emt 0:04:42]} 23. Nxe6 {[%emt 0:02:33]} fxe6 {[%emt 0:00:54]} 24. g6 {[%emt 0:00:41]} hxg6 {[%emt 0:03:05]} 25. Qh6 {[%emt 0:01:39]} gxh5 {[%emt 0:06:25]} 26. Rg1+ {[%emt 0:00:07]} Kf7 {[%emt 0:00:14]} 27. Qg6+ {[%emt 0:00:01]} Kf8 {[%emt 0:00:24]} 28. Qg8# {[%emt 0:00:01]} 1-0